[Event "Titled Tuesday Blitz November 29 Early 2022"]
[White "Yeremyan, Alen"]
[Black "Bacrot, Etienne"]
[WhiteFideId "13308998"]
[BlackFideId "605506"]
[WhiteElo "2159"]
[BlackElo "2666"]
[Result "1-0"]
[Round "09"]
[TimeControl "180+1"]
[Date "2022.11.29"]
[WhiteClock "0:01:47"]
[BlackClock "0:00:08"]

1. c4 {[%clk 0:02:56]}  e5 {[%clk 0:02:59]} 2. g3 {[%clk 0:02:56]}  Be7 {[%clk 0:02:59]} 3. Bg2 {[%clk 0:02:57]}  d6 {[%clk 0:02:59]} 4. e3 {[%clk 0:02:58]}  f5 {[%clk 0:02:59]} 5. Ne2 {[%clk 0:02:59]}  Nf6 {[%clk 0:02:59]} 6. O-O {[%clk 0:03:00]}  O-O {[%clk 0:03:00]} 7. d4 {[%clk 0:03:00]}  Nbd7 {[%clk 0:02:59]} 8. Nbc3 {[%clk 0:03:01]}  Qe8 {[%clk 0:02:58]} 9. f4 {[%clk 0:03:01]}  e4 {[%clk 0:02:55]} 10. d5 {[%clk 0:02:59]}  c5 {[%clk 0:02:51]} 11. a3 {[%clk 0:02:53]}  b6 {[%clk 0:02:44]} 12. b4 {[%clk 0:02:53]}  Kh8 {[%clk 0:02:42]} 13. b5 {[%clk 0:02:53]}  Rg8 {[%clk 0:02:39]} 14. a4 {[%clk 0:02:54]}  g5 {[%clk 0:02:38]} 15. fxg5 {[%clk 0:02:53]}  Rxg5 {[%clk 0:02:38]} 16. Nf4 {[%clk 0:02:54]}  Ne5 {[%clk 0:02:38]} 17. Qe2 {[%clk 0:02:51]}  Bd8 {[%clk 0:02:35]} 18. Bb2 {[%clk 0:02:51]}  h5 {[%clk 0:02:31]} 19. Nd1 {[%clk 0:02:51]}  Kh7 {[%clk 0:02:30]} 20. Nf2 {[%clk 0:02:50]}  Kh6 {[%clk 0:02:23]} 21. N2h3 {[%clk 0:02:51]}  Rg4 {[%clk 0:02:21]} 22. Rf2 {[%clk 0:02:47]}  a6 {[%clk 0:02:19]} 23. Raf1 {[%clk 0:02:41]}  axb5 {[%clk 0:02:18]} 24. axb5 {[%clk 0:02:42]}  Ra2 {[%clk 0:02:14]} 25. Ne6 {[%clk 0:02:42]}  Bxe6 {[%clk 0:02:08]} 26. dxe6 {[%clk 0:02:42]}  Nd3 {[%clk 0:01:22]} 27. Rxf5 {[%clk 0:02:20]}  Rxb2 {[%clk 0:01:21]} 28. Rxf6+ {[%clk 0:02:21]}  Bxf6 {[%clk 0:01:21]} 29. Rxf6+ {[%clk 0:02:18]}  Kg7 {[%clk 0:00:36]} 30. Qf1 {[%clk 0:02:17]}  Rb1 {[%clk 0:00:36]} 31. Qxb1 {[%clk 0:02:17]}  Kxf6 {[%clk 0:00:36]} 32. Bxe4 {[%clk 0:02:07]}  Rxe4 {[%clk 0:00:36]} 33. Qxd3 {[%clk 0:02:06]}  Qxe6 {[%clk 0:00:31]} 34. Nf4 {[%clk 0:02:05]}  Qe5 {[%clk 0:00:18]} 35. Kf2 {[%clk 0:01:57]}  Kg5 {[%clk 0:00:08]} 36. Kf3 {[%clk 0:01:56]}  d5 {[%clk 0:00:08]} 37. cxd5 {[%clk 0:01:47]} 1-0


[Site "https://www.chess.com"]

[Event "Titled Tuesday Blitz November 29 Early 2022"]
[White "Zaloznyy, Mike"]
[Black "Winkels, Marcel"]
[WhiteFideId "2023075"]
[BlackFideId "1003887"]
[WhiteElo "2126"]
[BlackElo "1900"]
[Result "1-0"]
[Round "09"]
[TimeControl "180+1"]
[Date "2022.11.30"]
[WhiteClock "0:00:03"]
[BlackClock "0:00:02"]

1. Nf3 {[%clk 0:02:49]}  Nf6 {[%clk 0:02:57]} 2. g3 {[%clk 0:02:46]}  d5 {[%clk 0:02:56]} 3. Bg2 {[%clk 0:02:45]}  g6 {[%clk 0:02:56]} 4. b3 {[%clk 0:02:45]}  Bg7 {[%clk 0:02:55]} 5. Bb2 {[%clk 0:02:45]}  c5 {[%clk 0:02:55]} 6. c4 {[%clk 0:02:34]}  d4 {[%clk 0:02:54]} 7. b4 {[%clk 0:02:35]}  cxb4 {[%clk 0:02:43]} 8. Nxd4 {[%clk 0:02:25]}  O-O {[%clk 0:02:42]} 9. O-O {[%clk 0:02:24]}  Qc7 {[%clk 0:02:38]} 10. d3 {[%clk 0:02:20]}  Nc6 {[%clk 0:02:35]} 11. Nb5 {[%clk 0:02:19]}  Qb6 {[%clk 0:02:28]} 12. a3 {[%clk 0:02:17]}  a6 {[%clk 0:02:26]} 13. axb4 {[%clk 0:02:17]}  Nxb4 {[%clk 0:02:22]} 14. Qb3 {[%clk 0:02:03]}  Nc6 {[%clk 0:02:14]} 15. Nd2 {[%clk 0:01:38]}  Bg4 {[%clk 0:01:59]} 16. Nc3 {[%clk 0:00:55]}  Qc7 {[%clk 0:01:46]} 17. h3 {[%clk 0:00:50]}  Be6 {[%clk 0:01:43]} 18. Nd5 {[%clk 0:00:48]}  Bxd5 {[%clk 0:01:28]} 19. cxd5 {[%clk 0:00:47]}  Nb8 {[%clk 0:01:20]} 20. Rfc1 {[%clk 0:00:43]}  Qd6 {[%clk 0:00:56]} 21. Nc4 {[%clk 0:00:41]}  Qd8 {[%clk 0:00:38]} 22. Qxb7 {[%clk 0:00:35]}  Nbd7 {[%clk 0:00:38]} 23. Rxa6 {[%clk 0:00:28]}  Rb8 {[%clk 0:00:36]} 24. Qc6 {[%clk 0:00:28]}  Rc8 {[%clk 0:00:18]} 25. Qa4 {[%clk 0:00:25]}  Nc5 {[%clk 0:00:18]} 26. Qa5 {[%clk 0:00:21]}  Nxa6 {[%clk 0:00:18]} 27. Qxa6 {[%clk 0:00:22]}  Ra8 {[%clk 0:00:16]} 28. Qc6 {[%clk 0:00:20]}  Nd7 {[%clk 0:00:16]} 29. Bxg7 {[%clk 0:00:19]}  Kxg7 {[%clk 0:00:16]} 30. d6 {[%clk 0:00:19]}  exd6 {[%clk 0:00:15]} 31. Qxa8 {[%clk 0:00:19]}  Qxa8 {[%clk 0:00:13]} 32. Bxa8 {[%clk 0:00:20]}  Rxa8 {[%clk 0:00:12]} 33. Nxd6 {[%clk 0:00:21]}  Ra2 {[%clk 0:00:12]} 34. Kf1 {[%clk 0:00:20]}  Nf6 {[%clk 0:00:10]} 35. Ne4 {[%clk 0:00:20]}  Nd5 {[%clk 0:00:10]} 36. Rc5 {[%clk 0:00:16]}  Nb4 {[%clk 0:00:08]} 37. f4 {[%clk 0:00:13]}  Ra1+ {[%clk 0:00:07]} 38. Kf2 {[%clk 0:00:12]}  Ra2 {[%clk 0:00:08]} 39. Ke3 {[%clk 0:00:11]}  Ra3 {[%clk 0:00:07]} 40. Rc7 {[%clk 0:00:10]}  h6 {[%clk 0:00:06]} 41. Nd6 {[%clk 0:00:09]}  Nd5+ {[%clk 0:00:05]} 42. Kd4 {[%clk 0:00:09]}  Nxc7 {[%clk 0:00:06]} 43. e4 {[%clk 0:00:10]}  Ra2 {[%clk 0:00:06]} 44. Ke5 {[%clk 0:00:08]}  Rg2 {[%clk 0:00:06]} 45. d4 {[%clk 0:00:09]}  Rxg3 {[%clk 0:00:05]} 46. f5 {[%clk 0:00:10]}  Rxh3 {[%clk 0:00:05]} 47. f6+ {[%clk 0:00:10]}  Kg8 {[%clk 0:00:05]} 48. Nc8 {[%clk 0:00:09]}  h5 {[%clk 0:00:05]} 49. Kd6 {[%clk 0:00:08]}  Ne6 {[%clk 0:00:04]} 50. d5 {[%clk 0:00:08]}  Nf4 {[%clk 0:00:04]} 51. e5 {[%clk 0:00:07]}  Rd3 {[%clk 0:00:04]} 52. Ne7+ {[%clk 0:00:06]}  Kh7 {[%clk 0:00:03]} 53. Kc5 {[%clk 0:00:03]}  h4 {[%clk 0:00:02]} 54. Kc4 {[%clk 0:00:03]}  Rd2 {[%clk 0:00:02]} 55. e6 {[%clk 0:00:03]}  Rd1 {[%clk 0:00:02]} 56. exf7 {[%clk 0:00:03]}  Rc1+ {[%clk 0:00:02]} 57. Kd4 {[%clk 0:00:03]} 1-0


[Site "https://www.chess.com"]

[Event "Titled Tuesday Blitz November 29 Early 2022"]
[White "Amin-Erdene, Bayanmunkh"]
[Black "Matveeva, Olga"]
[WhiteFideId "4903161"]
[BlackFideId "24107018"]
[WhiteElo "1447"]
[BlackElo "2055"]
[Result "1-0"]
[Round "10"]
[TimeControl "180+1"]
[Date "2022.11.30"]
[WhiteClock "0:00:10"]
[BlackClock "0:00:01"]

1. d4 {[%clk 0:03:00]}  Nf6 {[%clk 0:02:59]} 2. Bf4 {[%clk 0:03:00]}  d5 {[%clk 0:02:58]} 3. e3 {[%clk 0:03:01]}  c5 {[%clk 0:02:58]} 4. c3 {[%clk 0:03:01]}  Qb6 {[%clk 0:02:57]} 5. Qb3 {[%clk 0:03:01]}  c4 {[%clk 0:02:50]} 6. Qc2 {[%clk 0:03:01]}  Nc6 {[%clk 0:02:48]} 7. Nd2 {[%clk 0:03:00]}  g6 {[%clk 0:02:44]} 8. Ngf3 {[%clk 0:02:59]}  Bf5 {[%clk 0:02:44]} 9. Qc1 {[%clk 0:03:00]}  Bg7 {[%clk 0:02:43]} 10. h3 {[%clk 0:03:00]}  O-O {[%clk 0:02:42]} 11. Be2 {[%clk 0:03:01]}  a5 {[%clk 0:02:39]} 12. O-O {[%clk 0:03:01]}  a4 {[%clk 0:02:39]} 13. Ne5 {[%clk 0:02:59]}  Rfd8 {[%clk 0:02:29]} 14. Bf3 {[%clk 0:02:58]}  Nxe5 {[%clk 0:02:22]} 15. Bxe5 {[%clk 0:02:58]}  Bd3 {[%clk 0:02:21]} 16. Re1 {[%clk 0:02:57]}  e6 {[%clk 0:02:18]} 17. e4 {[%clk 0:02:56]}  Re8 {[%clk 0:01:56]} 18. exd5 {[%clk 0:02:49]}  Nxd5 {[%clk 0:01:52]} 19. Bxg7 {[%clk 0:02:49]}  Kxg7 {[%clk 0:01:53]} 20. Ne4 {[%clk 0:02:47]}  e5 {[%clk 0:01:38]} 21. Nc5 {[%clk 0:02:21]}  exd4 {[%clk 0:01:32]} 22. cxd4 {[%clk 0:02:22]}  Nb4 {[%clk 0:00:53]} 23. Rxe8 {[%clk 0:01:29]}  Rxe8 {[%clk 0:00:54]} 24. Qc3 {[%clk 0:01:29]}  Re7 {[%clk 0:00:25]} 25. a3 {[%clk 0:01:22]}  Nc2 {[%clk 0:00:24]} 26. Rc1 {[%clk 0:01:22]}  Qf6 {[%clk 0:00:17]} 27. Nxd3 {[%clk 0:01:12]}  cxd3 {[%clk 0:00:17]} 28. Qxd3 {[%clk 0:01:12]}  Nxd4 {[%clk 0:00:16]} 29. Be4 {[%clk 0:00:52]}  Qe5 {[%clk 0:00:14]} 30. Bf3 {[%clk 0:00:44]}  Nxf3+ {[%clk 0:00:12]} 31. Qxf3 {[%clk 0:00:45]}  Qxb2 {[%clk 0:00:11]} 32. Rc4 {[%clk 0:00:40]}  b5 {[%clk 0:00:09]} 33. Rb4 {[%clk 0:00:38]}  Qa1+ {[%clk 0:00:09]} 34. Kh2 {[%clk 0:00:38]}  Qe5+ {[%clk 0:00:09]} 35. g3 {[%clk 0:00:38]}  Rd7 {[%clk 0:00:08]} 36. h4 {[%clk 0:00:33]}  Rd4 {[%clk 0:00:09]} 37. Rb1 {[%clk 0:00:16]}  Rd2 {[%clk 0:00:08]} 38. Kg2 {[%clk 0:00:15]}  h5 {[%clk 0:00:07]} 39. Rb4 {[%clk 0:00:14]}  Rb2 {[%clk 0:00:07]} 40. Re4 {[%clk 0:00:14]}  Qf6 {[%clk 0:00:06]} 41. Rf4 {[%clk 0:00:14]}  Qe5 {[%clk 0:00:05]} 42. Rxf7+ {[%clk 0:00:14]}  Kh6 {[%clk 0:00:04]} 43. Rf8 {[%clk 0:00:11]}  Rb3 {[%clk 0:00:02]} 44. Qf7 {[%clk 0:00:10]}  Qe4+ {[%clk 0:00:01]} 45. Kh2 {[%clk 0:00:10]} 1-0


[Site "https://www.chess.com"]

[Event "Titled Tuesday Blitz November 29 Early 2022"]
[White "Barash, Anton"]
[Black "Forgacs, Attila Jr."]
[WhiteFideId "30935229"]
[BlackFideId "773654"]
[WhiteElo "2325"]
[BlackElo "2168"]
[Result "1/2-1/2"]
[Round "10"]
[TimeControl "180+1"]
[Date "2022.11.30"]
[WhiteClock "0:00:08"]
[BlackClock "0:00:45"]

1. e4 {[%clk 0:03:00]}  e5 {[%clk 0:02:58]} 2. Nc3 {[%clk 0:03:01]}  Nf6 {[%clk 0:02:58]} 3. f4 {[%clk 0:03:01]}  d5 {[%clk 0:02:58]} 4. fxe5 {[%clk 0:03:01]}  Nxe4 {[%clk 0:02:58]} 5. Qf3 {[%clk 0:03:02]}  Nc6 {[%clk 0:02:58]} 6. Bb5 {[%clk 0:03:01]}  Nxc3 {[%clk 0:02:56]} 7. dxc3 {[%clk 0:03:02]}  Qh4+ {[%clk 0:02:57]} 8. g3 {[%clk 0:03:02]}  Qe4+ {[%clk 0:02:58]} 9. Qxe4 {[%clk 0:02:54]}  dxe4 {[%clk 0:02:58]} 10. Be3 {[%clk 0:02:55]}  Be6 {[%clk 0:02:54]} 11. O-O-O {[%clk 0:02:51]}  g6 {[%clk 0:02:49]} 12. Ne2 {[%clk 0:02:45]}  Bg7 {[%clk 0:02:49]} 13. Bf4 {[%clk 0:02:45]}  O-O {[%clk 0:02:45]} 14. Bxc6 {[%clk 0:02:37]}  bxc6 {[%clk 0:02:46]} 15. Nd4 {[%clk 0:02:37]}  Bd5 {[%clk 0:02:40]} 16. b3 {[%clk 0:02:20]}  c5 {[%clk 0:02:40]} 17. Nb5 {[%clk 0:02:20]}  Rad8 {[%clk 0:02:17]} 18. Nxc7 {[%clk 0:02:02]}  Bc6 {[%clk 0:02:17]} 19. e6 {[%clk 0:01:51]}  fxe6 {[%clk 0:01:49]} 20. Nxe6 {[%clk 0:01:46]}  Rxd1+ {[%clk 0:01:47]} 21. Rxd1 {[%clk 0:01:47]}  Re8 {[%clk 0:01:44]} 22. Nxg7 {[%clk 0:01:19]}  Kxg7 {[%clk 0:01:45]} 23. Be3 {[%clk 0:01:16]}  c4 {[%clk 0:01:41]} 24. Bxa7 {[%clk 0:01:08]}  Ra8 {[%clk 0:01:35]} 25. Bd4+ {[%clk 0:01:05]}  Kf7 {[%clk 0:01:33]} 26. a4 {[%clk 0:00:57]}  Rb8 {[%clk 0:01:25]} 27. Rf1+ {[%clk 0:00:43]}  Ke7 {[%clk 0:01:13]} 28. Rf6 {[%clk 0:00:34]}  Bd7 {[%clk 0:01:05]} 29. a5 {[%clk 0:00:18]}  cxb3 {[%clk 0:01:04]} 30. cxb3 {[%clk 0:00:19]}  Rxb3 {[%clk 0:01:04]} 31. a6 {[%clk 0:00:20]}  Ra3 {[%clk 0:01:00]} 32. Rf4 {[%clk 0:00:18]}  Rxa6 {[%clk 0:00:58]} 33. Rxe4+ {[%clk 0:00:18]}  Be6 {[%clk 0:00:59]} 34. Re2 {[%clk 0:00:16]}  Ra1+ {[%clk 0:00:58]} 35. Kd2 {[%clk 0:00:16]}  Kd6 {[%clk 0:00:56]} 36. Ke3 {[%clk 0:00:16]}  Bf5 {[%clk 0:00:55]} 37. Kf4 {[%clk 0:00:14]}  h6 {[%clk 0:00:52]} 38. g4 {[%clk 0:00:11]}  Rf1+ {[%clk 0:00:50]} 39. Rf2 {[%clk 0:00:12]}  Rxf2+ {[%clk 0:00:50]} 40. Bxf2 {[%clk 0:00:12]}  Be6 {[%clk 0:00:48]} 41. Bd4 {[%clk 0:00:12]}  h5 {[%clk 0:00:42]} 42. gxh5 {[%clk 0:00:08]}  gxh5 {[%clk 0:00:43]} 43. Kg5 {[%clk 0:00:08]}  Bg4 {[%clk 0:00:43]} 44. h4 {[%clk 0:00:06]}  Kd5 {[%clk 0:00:43]} 45. Kh6 {[%clk 0:00:07]}  Kc4 {[%clk 0:00:43]} 46. Kg5 {[%clk 0:00:07]}  Kd5 {[%clk 0:00:44]} 47. Kf4 {[%clk 0:00:08]}  Kc4 {[%clk 0:00:44]} 48. Kg5 {[%clk 0:00:08]}  Kd5 {[%clk 0:00:45]} 1/2-1/2


[Site "https://www.chess.com"]

[Event "Titled Tuesday Blitz November 29 Early 2022"]
[White "Barria Zuniga, Daniel"]
[Black "Balabayeva, Xeniya"]
[WhiteFideId "3400816"]
[BlackFideId "13719688"]
[WhiteElo "2414"]
[BlackElo "2041"]
[Result "1-0"]
[Round "10"]
[TimeControl "180+1"]
[Date "2022.11.30"]
[WhiteClock "0:01:00"]
[BlackClock "0:00:02"]

1. d4 {[%clk 0:02:09]}  d5 {[%clk 0:02:57]} 2. c4 {[%clk 0:02:08]}  e6 {[%clk 0:02:55]} 3. Nf3 {[%clk 0:02:08]}  Nf6 {[%clk 0:02:54]} 4. Nc3 {[%clk 0:02:08]}  dxc4 {[%clk 0:02:49]} 5. e3 {[%clk 0:02:07]}  a6 {[%clk 0:02:44]} 6. Bxc4 {[%clk 0:02:07]}  b5 {[%clk 0:02:38]} 7. Bb3 {[%clk 0:02:07]}  Bb7 {[%clk 0:02:25]} 8. O-O {[%clk 0:02:06]}  Nbd7 {[%clk 0:02:21]} 9. Re1 {[%clk 0:02:05]}  Be7 {[%clk 0:02:18]} 10. e4 {[%clk 0:02:02]}  b4 {[%clk 0:02:16]} 11. e5 {[%clk 0:02:01]}  bxc3 {[%clk 0:02:14]} 12. exf6 {[%clk 0:02:01]}  Nxf6 {[%clk 0:02:13]} 13. bxc3 {[%clk 0:01:52]}  O-O {[%clk 0:02:12]} 14. Bg5 {[%clk 0:01:37]}  c5 {[%clk 0:02:10]} 15. Ne5 {[%clk 0:01:30]}  cxd4 {[%clk 0:02:06]} 16. cxd4 {[%clk 0:01:30]}  Nd5 {[%clk 0:01:53]} 17. Bd2 {[%clk 0:01:21]}  Ba3 {[%clk 0:01:32]} 18. Qg4 {[%clk 0:01:18]}  Nf6 {[%clk 0:01:21]} 19. Qh4 {[%clk 0:01:16]}  Bb2 {[%clk 0:01:01]} 20. Rad1 {[%clk 0:01:13]}  Qxd4 {[%clk 0:00:24]} 21. Qh3 {[%clk 0:01:09]}  Qb6 {[%clk 0:00:14]} 22. Nc4 {[%clk 0:01:09]}  Qd4 {[%clk 0:00:06]} 23. Bb4 {[%clk 0:01:05]}  Qf4 {[%clk 0:00:01]} 24. Bxf8 {[%clk 0:01:02]}  Bc3 {[%clk 0:00:02]} 25. Qxc3 {[%clk 0:01:00]} 1-0


[Site "https://www.chess.com"]

[Event "Titled Tuesday Blitz November 29 Early 2022"]
[White "Baskakov, Egor"]
[Black "Oparin, Grigoriy"]
[WhiteFideId "24197866"]
[BlackFideId "24125890"]
[WhiteElo "2211"]
[BlackElo "2639"]
[Result "1/2-1/2"]
[Round "10"]
[TimeControl "180+1"]
[Date "2022.11.29"]
[WhiteClock "0:00:39"]
[BlackClock "0:00:21"]

1. e4 {[%clk 0:03:00]}  e5 {[%clk 0:02:58]} 2. Nc3 {[%clk 0:03:00]}  Nc6 {[%clk 0:02:58]} 3. g3 {[%clk 0:03:00]}  g6 {[%clk 0:02:58]} 4. Bg2 {[%clk 0:03:01]}  Bg7 {[%clk 0:02:59]} 5. Nge2 {[%clk 0:03:00]}  d6 {[%clk 0:02:59]} 6. O-O {[%clk 0:02:59]}  Nge7 {[%clk 0:03:00]} 7. d3 {[%clk 0:02:59]}  O-O {[%clk 0:02:59]} 8. h3 {[%clk 0:03:00]}  h6 {[%clk 0:02:58]} 9. f4 {[%clk 0:02:59]}  f5 {[%clk 0:02:58]} 10. Be3 {[%clk 0:02:59]}  Kh7 {[%clk 0:02:58]} 11. Qd2 {[%clk 0:02:59]}  Be6 {[%clk 0:02:58]} 12. Nd5 {[%clk 0:02:58]}  Qd7 {[%clk 0:02:52]} 13. Kh2 {[%clk 0:02:56]}  Rae8 {[%clk 0:02:51]} 14. Rae1 {[%clk 0:02:51]}  Bxd5 {[%clk 0:02:46]} 15. exd5 {[%clk 0:02:50]}  Nd4 {[%clk 0:02:47]} 16. c4 {[%clk 0:02:39]}  Nxe2 {[%clk 0:02:44]} 17. Rxe2 {[%clk 0:02:38]}  exf4 {[%clk 0:02:45]} 18. Bxf4 {[%clk 0:02:39]}  g5 {[%clk 0:02:40]} 19. Be3 {[%clk 0:02:38]}  Ng6 {[%clk 0:02:40]} 20. b3 {[%clk 0:02:33]}  Kh8 {[%clk 0:02:26]} 21. Bf2 {[%clk 0:02:27]}  f4 {[%clk 0:02:26]} 22. Rxe8 {[%clk 0:02:26]}  Qxe8 {[%clk 0:02:25]} 23. Re1 {[%clk 0:02:23]}  Qf7 {[%clk 0:02:25]} 24. Be4 {[%clk 0:02:22]}  fxg3+ {[%clk 0:02:21]} 25. Bxg3 {[%clk 0:02:23]}  Nf4 {[%clk 0:02:21]} 26. Qd1 {[%clk 0:02:17]}  h5 {[%clk 0:02:16]} 27. Rf1 {[%clk 0:02:09]}  Bd4 {[%clk 0:02:11]} 28. h4 {[%clk 0:01:59]}  Qg7 {[%clk 0:01:53]} 29. Bxf4 {[%clk 0:01:31]}  gxf4 {[%clk 0:01:54]} 30. Qxh5+ {[%clk 0:01:31]}  Kg8 {[%clk 0:01:55]} 31. Qf3 {[%clk 0:01:29]}  Rf6 {[%clk 0:01:46]} 32. Qh3 {[%clk 0:01:26]}  Kh8 {[%clk 0:01:11]} 33. Qg2 {[%clk 0:01:08]}  Qh6 {[%clk 0:00:30]} 34. Qg4 {[%clk 0:01:03]}  Rf8 {[%clk 0:00:30]} 35. Qg5 {[%clk 0:00:58]}  Qxg5 {[%clk 0:00:21]} 36. hxg5 {[%clk 0:00:59]}  Kg7 {[%clk 0:00:21]} 37. Kg2 {[%clk 0:00:52]}  Be3 {[%clk 0:00:21]} 38. Rh1 {[%clk 0:00:43]}  f3+ {[%clk 0:00:19]} 39. Bxf3 {[%clk 0:00:43]}  Bxg5 {[%clk 0:00:20]} 40. Be4 {[%clk 0:00:42]}  Rh8 {[%clk 0:00:20]} 41. Rxh8 {[%clk 0:00:40]}  Kxh8 {[%clk 0:00:21]} 42. Kh3 {[%clk 0:00:39]} 1/2-1/2


[Site "https://www.chess.com"]

[Event "Titled Tuesday Blitz November 29 Early 2022"]
[White "Begunov, Konstantin"]
[Black "Tarnowska, Aleksandra"]
[WhiteFideId "4118510"]
[BlackFideId "1180967"]
[WhiteElo "2140"]
[BlackElo "1776"]
[Result "1-0"]
[Round "10"]
[TimeControl "180+1"]
[Date "2022.11.30"]
[WhiteClock "0:00:26"]
[BlackClock "0:00:04"]

1. d4 {[%clk 0:03:00]}  d5 {[%clk 0:02:59]} 2. c4 {[%clk 0:03:00]}  e6 {[%clk 0:02:59]} 3. Nc3 {[%clk 0:03:01]}  Nf6 {[%clk 0:02:59]} 4. cxd5 {[%clk 0:03:01]}  exd5 {[%clk 0:02:59]} 5. Bg5 {[%clk 0:03:02]}  Be7 {[%clk 0:03:00]} 6. e3 {[%clk 0:03:02]}  O-O {[%clk 0:03:00]} 7. Qc2 {[%clk 0:03:02]}  h6 {[%clk 0:03:00]} 8. Bh4 {[%clk 0:03:02]}  b6 {[%clk 0:02:58]} 9. Nf3 {[%clk 0:03:01]}  Bb7 {[%clk 0:02:58]} 10. Be2 {[%clk 0:03:02]}  Nbd7 {[%clk 0:02:57]} 11. O-O {[%clk 0:03:02]}  Ne4 {[%clk 0:02:42]} 12. Bxe7 {[%clk 0:02:58]}  Qxe7 {[%clk 0:02:42]} 13. Rfd1 {[%clk 0:02:41]}  Ndf6 {[%clk 0:02:23]} 14. Rac1 {[%clk 0:02:38]}  c6 {[%clk 0:02:10]} 15. Bd3 {[%clk 0:02:24]}  Rfe8 {[%clk 0:01:38]} 16. a3 {[%clk 0:02:21]}  Rac8 {[%clk 0:01:25]} 17. b4 {[%clk 0:02:21]}  Ng4 {[%clk 0:00:42]} 18. Bxe4 {[%clk 0:01:26]}  dxe4 {[%clk 0:00:41]} 19. Nd2 {[%clk 0:01:26]}  Qh4 {[%clk 0:00:32]} 20. Nf1 {[%clk 0:01:15]}  Ba6 {[%clk 0:00:20]} 21. h3 {[%clk 0:01:05]}  Bd3 {[%clk 0:00:14]} 22. Qd2 {[%clk 0:00:50]}  Nf6 {[%clk 0:00:13]} 23. Ng3 {[%clk 0:00:45]}  Qg5 {[%clk 0:00:07]} 24. Nce2 {[%clk 0:00:44]}  Nh5 {[%clk 0:00:04]} 25. Nxh5 {[%clk 0:00:40]}  Qxh5 {[%clk 0:00:05]} 26. Nf4 {[%clk 0:00:40]}  Qf5 {[%clk 0:00:04]} 27. Nxd3 {[%clk 0:00:40]}  exd3 {[%clk 0:00:05]} 28. Qxd3 {[%clk 0:00:41]}  Qg5 {[%clk 0:00:05]} 29. Rc3 {[%clk 0:00:38]}  Re6 {[%clk 0:00:05]} 30. Rdc1 {[%clk 0:00:37]}  Rg6 {[%clk 0:00:05]} 31. Qe4 {[%clk 0:00:36]}  Rf8 {[%clk 0:00:04]} 32. Rxc6 {[%clk 0:00:34]}  Rxc6 {[%clk 0:00:04]} 33. Rxc6 {[%clk 0:00:34]}  Qh5 {[%clk 0:00:05]} 34. Qf3 {[%clk 0:00:31]}  Qb5 {[%clk 0:00:05]} 35. d5 {[%clk 0:00:28]}  Qa4 {[%clk 0:00:05]} 36. e4 {[%clk 0:00:27]}  Qb3 {[%clk 0:00:04]} 37. Qxb3 {[%clk 0:00:26]} 1-0


[Site "https://www.chess.com"]

[Event "Titled Tuesday Blitz November 29 Early 2022"]
[White "Bogaudinov, Rushan"]
[Black "Koellner, Ruben Gideon"]
[WhiteFideId "4129288"]
[BlackFideId "12993093"]
[WhiteElo "1997"]
[BlackElo "2303"]
[Result "0-1"]
[Round "10"]
[TimeControl "180+1"]
[Date "2022.11.30"]
[WhiteClock "0:01:09"]
[BlackClock "0:02:34"]

1. a3 {[%clk 0:02:59]}  d6 {[%clk 0:03:00]} 2. d4 {[%clk 0:02:56]}  e5 {[%clk 0:03:00]} 3. dxe5 {[%clk 0:02:56]}  dxe5 {[%clk 0:03:01]} 4. Qxd8+ {[%clk 0:02:56]}  Kxd8 {[%clk 0:03:02]} 5. Nc3 {[%clk 0:02:54]}  Be6 {[%clk 0:03:02]} 6. g3 {[%clk 0:02:52]}  c6 {[%clk 0:03:02]} 7. Bg2 {[%clk 0:02:52]}  Kc7 {[%clk 0:03:02]} 8. f4 {[%clk 0:02:52]}  Nd7 {[%clk 0:03:02]} 9. Nf3 {[%clk 0:02:46]}  f6 {[%clk 0:03:02]} 10. Be3 {[%clk 0:02:40]}  Nh6 {[%clk 0:03:00]} 11. h3 {[%clk 0:02:31]}  Nf5 {[%clk 0:02:58]} 12. Bf2 {[%clk 0:02:32]}  Bc5 {[%clk 0:02:56]} 13. e4 {[%clk 0:02:24]}  Bxf2+ {[%clk 0:02:52]} 14. Kxf2 {[%clk 0:02:24]}  Nd6 {[%clk 0:02:50]} 15. b3 {[%clk 0:02:16]}  Rhd8 {[%clk 0:02:48]} 16. Rad1 {[%clk 0:02:14]}  b5 {[%clk 0:02:47]} 17. h4 {[%clk 0:02:09]}  Bg4 {[%clk 0:02:46]} 18. Bh3 {[%clk 0:02:06]}  Bxf3 {[%clk 0:02:44]} 19. Kxf3 {[%clk 0:02:07]}  Nc5 {[%clk 0:02:45]} 20. Ke3 {[%clk 0:01:50]}  a5 {[%clk 0:02:44]} 21. fxe5 {[%clk 0:01:33]}  fxe5 {[%clk 0:02:44]} 22. Rhf1 {[%clk 0:01:29]}  b4 {[%clk 0:02:44]} 23. axb4 {[%clk 0:01:23]}  axb4 {[%clk 0:02:45]} 24. Na4 {[%clk 0:01:17]}  Nxa4 {[%clk 0:02:39]} 25. bxa4 {[%clk 0:01:18]}  Rxa4 {[%clk 0:02:40]} 26. Be6 {[%clk 0:01:17]}  Ra3+ {[%clk 0:02:37]} 27. Rd3 {[%clk 0:01:17]}  Rxd3+ {[%clk 0:02:36]} 28. cxd3 {[%clk 0:01:16]}  Ra8 {[%clk 0:02:34]} 29. Rf8 {[%clk 0:01:09]}  Rxf8 {[%clk 0:02:34]} 0-1


[Site "https://www.chess.com"]